[Event "*** Titled Tuesday Blitz"]
[Site "Chess.com"]
[Date "2021.04.20"]
[Round "1"]
[White "Ze-Pequeno"]
[Black "manitodeplomo"]
[Result "0-1"]
[WhiteElo "2236"]
[BlackElo "2564"]
[TimeControl "180+1"]
[EndTime "10:01:37 PDT"]
[Termination "manitodeplomo won by resignation"]

1. e4 {[%clk 0:02:58.4]} 1... g6 {[%clk 0:02:50.9]} 2. d4 {[%clk 0:02:56.5]}
2... Bg7 {[%clk 0:02:51.8]} 3. Nf3 {[%clk 0:02:55.8]} 3... c5 {[%clk 0:02:51]}
4. c3 {[%clk 0:02:53.3]} 4... cxd4 {[%clk 0:02:50.7]} 5. cxd4 {[%clk 0:02:54.2]}
5... d5 {[%clk 0:02:51]} 6. e5 {[%clk 0:02:54.7]} 6... Nh6 {[%clk 0:02:50.4]} 7.
h3 {[%clk 0:02:54.2]} 7... O-O {[%clk 0:02:47.9]} 8. Nc3 {[%clk 0:02:54.1]} 8...
Nc6 {[%clk 0:02:47.4]} 9. Be2 {[%clk 0:02:53.2]} 9... Bf5 {[%clk 0:02:47.9]} 10.
O-O {[%clk 0:02:51.3]} 10... Be4 {[%clk 0:02:47.9]} 11. Be3 {[%clk 0:02:38.4]}
11... Nf5 {[%clk 0:02:45.5]} 12. Nxe4 {[%clk 0:02:37.9]} 12... dxe4 {[%clk
0:02:44.9]} 13. Ng5 {[%clk 0:02:38.4]} 13... Ncxd4 {[%clk 0:02:33.3]} 0-1

[Event "*** Titled Tuesday Blitz"]
[Site "Chess.com"]
[Date "2021.04.20"]
[Round "1"]
[White "chessmadara"]
[Black "ukchessbomber"]
[Result "0-1"]
[WhiteElo "2178"]
[BlackElo "2514"]
[TimeControl "180+1"]
[EndTime "10:01:41 PDT"]
[Termination "ukchessbomber won by resignation"]

1. e4 {[%clk 0:02:59.7]} 1... e5 {[%clk 0:02:58.7]} 2. Nf3 {[%clk 0:02:59.5]}
2... Nc6 {[%clk 0:02:58.5]} 3. d4 {[%clk 0:02:59.5]} 3... exd4 {[%clk
0:02:57.1]} 4. Nxd4 {[%clk 0:03:00.4]} 4... Nf6 {[%clk 0:02:57.5]} 5. Nxc6
{[%clk 0:02:59.5]} 5... bxc6 {[%clk 0:02:58.4]} 6. e5 {[%clk 0:02:59.8]} 6...
Qe7 {[%clk 0:02:56.8]} 7. Qe2 {[%clk 0:02:59.8]} 7... Nd5 {[%clk 0:02:57.4]} 8.
h4 {[%clk 0:02:59]} 8... g6 {[%clk 0:02:57.1]} 9. c4 {[%clk 0:02:55.5]} 9... Ba6
{[%clk 0:02:56.7]} 10. Bg5 {[%clk 0:02:39.9]} 10... Qb4+ {[%clk 0:02:48.5]} 11.
Qd2 {[%clk 0:02:39.6]} 11... Bxc4 {[%clk 0:02:47.6]} 12. Qxb4 {[%clk 0:02:29.3]}
12... Bxb4+ {[%clk 0:02:47]} 13. Nd2 {[%clk 0:02:18.4]} 13... Bxf1 {[%clk
0:02:46.9]} 14. Kxf1 {[%clk 0:02:17.3]} 14... h6 {[%clk 0:02:47.2]} 0-1

[Event "*** Titled Tuesday Blitz"]
[Site "Chess.com"]
[Date "2021.04.20"]
[Round "1"]
[White "ZAbdumalik"]
[Black "Andrii_Prydun"]
[Result "1-0"]
[WhiteElo "2633"]
[BlackElo "2327"]
[TimeControl "180+1"]
[EndTime "10:02:33 PDT"]
[Termination "ZAbdumalik won by resignation"]

1. e4 {[%clk 0:02:27.3]} 1... d5 {[%clk 0:02:54.9]} 2. exd5 {[%clk 0:02:27.1]}
2... Qxd5 {[%clk 0:02:55.1]} 3. Nc3 {[%clk 0:02:27.2]} 3... Qd6 {[%clk
0:02:55.4]} 4. Nf3 {[%clk 0:02:27.2]} 4... Nf6 {[%clk 0:02:54.7]} 5. d4 {[%clk
0:02:28.1]} 5... c6 {[%clk 0:02:54.4]} 6. g3 {[%clk 0:02:29]} 6... Nbd7 {[%clk
0:02:42.7]} 7. Bg2 {[%clk 0:02:29.9]} 7... e6 {[%clk 0:02:42.3]} 8. O-O {[%clk
0:02:30.8]} 8... Be7 {[%clk 0:02:42]} 9. Bf4 {[%clk 0:02:31.7]} 9... Qb4 {[%clk
0:02:41.8]} 10. Rb1 {[%clk 0:02:32.2]} 10... O-O {[%clk 0:02:40.9]} 11. a3
{[%clk 0:02:33.1]} 11... Qa5 {[%clk 0:02:40.3]} 12. Re1 {[%clk 0:02:34]} 12...
Nd5 {[%clk 0:02:32.8]} 13. Nxd5 {[%clk 0:02:33.2]} 13... cxd5 {[%clk 0:02:32.8]}
14. h4 {[%clk 0:02:31.3]} 14... b5 {[%clk 0:02:24.7]} 15. h5 {[%clk 0:02:27.5]}
15... h6 {[%clk 0:02:17.6]} 16. g4 {[%clk 0:02:23.7]} 16... Nf6 {[%clk
0:02:15.7]} 17. Ne5 {[%clk 0:02:21.6]} 17... b4 {[%clk 0:02:01.5]} 18. Nc6
{[%clk 0:02:20.8]} 1-0

[Event "*** Titled Tuesday Blitz"]
[Site "Chess.com"]
[Date "2021.04.20"]
[Round "1"]
[White "mishanick"]
[Black "Alohamora11"]
[Result "1-0"]
[WhiteElo "2971"]
[BlackElo "2468"]
[TimeControl "180+1"]
[EndTime "10:02:59 PDT"]
[Termination "mishanick won by resignation"]

1. e4 {[%clk 0:03:00.6]} 1... c5 {[%clk 0:02:59.9]} 2. Nf3 {[%clk 0:03:01.1]}
2... g6 {[%clk 0:03:00.2]} 3. c3 {[%clk 0:02:59.9]} 3... Bg7 {[%clk 0:02:59.6]}
4. d4 {[%clk 0:03:00]} 4... cxd4 {[%clk 0:03:00.5]} 5. cxd4 {[%clk 0:03:00.9]}
5... d5 {[%clk 0:03:00.7]} 6. e5 {[%clk 0:03:00.4]} 6... Bg4 {[%clk 0:03:00.8]}
7. Qb3 {[%clk 0:02:47.6]} 7... Bxf3 {[%clk 0:02:42.4]} 8. Qxb7 {[%clk
0:02:30.7]} 8... Nd7 {[%clk 0:02:13.8]} 9. gxf3 {[%clk 0:02:30]} 9... Nb6 {[%clk
0:02:05.9]} 10. Nc3 {[%clk 0:02:24]} 10... e6 {[%clk 0:02:03.9]} 11. Bb5+ {[%clk
0:02:21.5]} 11... Kf8 {[%clk 0:02:03.8]} 12. b3 {[%clk 0:02:20.2]} 12... Ne7
{[%clk 0:02:03.1]} 13. Ba3 {[%clk 0:02:20]} 13... Rc8 {[%clk 0:01:47.2]} 14. Na4
{[%clk 0:02:15.2]} 14... Nxa4 {[%clk 0:01:40.3]} 15. Bxe7+ {[%clk 0:02:14.1]}
1-0

[Event "*** Titled Tuesday Blitz"]
[Site "Chess.com"]
[Date "2021.04.20"]
[Round "1"]
[White "kuhlmann"]
[Black "Vuk2000"]
[Result "0-1"]
[WhiteElo "2416"]
[BlackElo "2753"]
[TimeControl "180+1"]
[EndTime "10:03:07 PDT"]
[Termination "Vuk2000 won by resignation"]

1. a4 {[%clk 0:03:00.8]} 1... d5 {[%clk 0:02:57.3]} 2. g3 {[%clk 0:03:01]} 2...
e5 {[%clk 0:02:57.1]} 3. Bg2 {[%clk 0:03:01.3]} 3... Nf6 {[%clk 0:02:57.4]} 4.
d3 {[%clk 0:03:01.6]} 4... Nc6 {[%clk 0:02:57.1]} 5. Nd2 {[%clk 0:03:01.5]} 5...
Be6 {[%clk 0:02:54.9]} 6. e4 {[%clk 0:03:01.2]} 6... Bc5 {[%clk 0:02:41.7]} 7.
Ngf3 {[%clk 0:03:00.2]} 7... O-O {[%clk 0:02:34.3]} 8. O-O {[%clk 0:02:59.4]}
8... Qe7 {[%clk 0:02:28.4]} 9. c3 {[%clk 0:02:56]} 9... a5 {[%clk 0:02:26.1]}
10. Ng5 {[%clk 0:02:44.2]} 10... Bg4 {[%clk 0:02:18.3]} 11. Bf3 {[%clk
0:02:44.2]} 11... Bxf3 {[%clk 0:02:14.8]} 12. Ngxf3 {[%clk 0:02:39.9]} 12...
Rad8 {[%clk 0:02:11.7]} 13. Qe2 {[%clk 0:02:38.2]} 13... Rfe8 {[%clk 0:01:51.4]}
14. Kg2 {[%clk 0:02:37.2]} 14... Rd7 {[%clk 0:01:39.7]} 15. exd5 {[%clk
0:02:29.6]} 15... Rxd5 {[%clk 0:01:37.1]} 16. Nc4 {[%clk 0:02:29.6]} 16... e4
{[%clk 0:01:32.8]} 17. dxe4 {[%clk 0:02:22.5]} 17... Qxe4 {[%clk 0:01:33.7]} 18.
Qxe4 {[%clk 0:02:20.4]} 18... Rxe4 {[%clk 0:01:34.6]} 19. Be3 {[%clk 0:02:15.8]}
19... Rxc4 {[%clk 0:01:32.3]} 0-1

[Event "*** Titled Tuesday Blitz"]
[Site "Chess.com"]
[Date "2021.04.20"]
[Round "1"]
[White "Aslanov_Umid"]
[Black "Salem-AR"]
[Result "0-1"]
[WhiteElo "2465"]
[BlackElo "2964"]
[TimeControl "180+1"]
[EndTime "10:03:17 PDT"]
[Termination "Salem-AR won by resignation"]

1. e4 {[%clk 0:02:59.1]} 1... c6 {[%clk 0:02:59.5]} 2. d4 {[%clk 0:02:58.7]}
2... d5 {[%clk 0:03:00.1]} 3. Nd2 {[%clk 0:02:59.6]} 3... dxe4 {[%clk
0:03:00.1]} 4. Nxe4 {[%clk 0:03:00.5]} 4... Nf6 {[%clk 0:03:00.6]} 5. Nxf6+
{[%clk 0:03:00.7]} 5... exf6 {[%clk 0:03:01.5]} 6. c3 {[%clk 0:03:01]} 6... Qd5
{[%clk 0:03:02.2]} 7. Nf3 {[%clk 0:02:58.6]} 7... Bd6 {[%clk 0:03:01.7]} 8. Be2
{[%clk 0:02:58.5]} 8... O-O {[%clk 0:03:01.6]} 9. O-O {[%clk 0:02:58.7]} 9...
Re8 {[%clk 0:03:01.7]} 10. h3 {[%clk 0:02:55.8]} 10... Bc7 {[%clk 0:03:01.4]}
11. Re1 {[%clk 0:02:51.6]} 11... Nd7 {[%clk 0:02:47]} 12. Be3 {[%clk 0:02:41.5]}
12... Nf8 {[%clk 0:02:39.7]} 13. Qc2 {[%clk 0:02:39.3]} 13... Bf5 {[%clk
0:02:36.2]} 14. Bd3 {[%clk 0:02:35.4]} 14... Bxh3 {[%clk 0:02:35.6]} 15. c4
{[%clk 0:01:41.5]} 15... Qh5 {[%clk 0:02:34.1]} 16. gxh3 {[%clk 0:01:42]} 16...
Qxf3 {[%clk 0:02:33.8]} 17. Bf5 {[%clk 0:01:42.6]} 17... h5 {[%clk 0:02:26.3]}
18. d5 {[%clk 0:01:34.2]} 18... g6 {[%clk 0:02:21.2]} 19. Bd3 {[%clk 0:01:26.6]}
19... Qxh3 {[%clk 0:02:20.4]} 20. Bxg6 {[%clk 0:01:25.9]} 0-1

[Event "*** Titled Tuesday Blitz"]
[Site "Chess.com"]
[Date "2021.04.20"]
[Round "1"]
[White "Kobalia"]
[Black "Rozhkov_V"]
[Result "1-0"]
[WhiteElo "2788"]
[BlackElo "2423"]
[TimeControl "180+1"]
[EndTime "10:03:35 PDT"]
[Termination "Kobalia won by resignation"]

1. e4 {[%clk 0:02:57.5]} 1... c5 {[%clk 0:02:59.8]} 2. Nf3 {[%clk 0:02:56.5]}
2... d6 {[%clk 0:02:59.8]} 3. Bb5+ {[%clk 0:02:54.5]} 3... Nd7 {[%clk
0:02:59.4]} 4. c3 {[%clk 0:02:53.4]} 4... a6 {[%clk 0:02:59.2]} 5. Ba4 {[%clk
0:02:52.7]} 5... b5 {[%clk 0:02:59]} 6. Bc2 {[%clk 0:02:52]} 6... Bb7 {[%clk
0:02:59.1]} 7. O-O {[%clk 0:02:51.7]} 7... e6 {[%clk 0:02:59.2]} 8. d4 {[%clk
0:02:51.2]} 8... Qc7 {[%clk 0:02:58.7]} 9. Re1 {[%clk 0:02:49.2]} 9... Ngf6
{[%clk 0:02:58.4]} 10. Nbd2 {[%clk 0:02:42.7]} 10... Rc8 {[%clk 0:02:47.8]} 11.
Bd3 {[%clk 0:02:41.8]} 11... Be7 {[%clk 0:02:41.2]} 12. Nf1 {[%clk 0:02:40.9]}
12... e5 {[%clk 0:02:38.4]} 13. Ng3 {[%clk 0:02:39.2]} 13... O-O {[%clk
0:02:28.8]} 14. Nf5 {[%clk 0:02:38.1]} 14... Rfe8 {[%clk 0:02:13.7]} 15. Nxe7+
{[%clk 0:02:37.4]} 15... Rxe7 {[%clk 0:02:13.6]} 16. d5 {[%clk 0:02:37.5]} 16...
c4 {[%clk 0:01:21]} 17. Bc2 {[%clk 0:02:36.4]} 17... Nc5 {[%clk 0:01:21]} 18. b4
{[%clk 0:02:33.4]} 18... Nd3 {[%clk 0:01:17.9]} 19. Bxd3 {[%clk 0:02:28.1]}
19... cxd3 {[%clk 0:01:18.8]} 20. Bb2 {[%clk 0:02:28.1]} 20... Qc4 {[%clk
0:01:14.9]} 21. Nd2 {[%clk 0:02:27.2]} 21... Qc7 {[%clk 0:01:12.6]} 22. Re3
{[%clk 0:02:26.4]} 22... Ng4 {[%clk 0:01:08.5]} 23. Qxg4 {[%clk 0:02:21.8]} 1-0

[Event "*** Titled Tuesday Blitz"]
[Site "Chess.com"]
[Date "2021.04.20"]
[Round "1"]
[White "CrushingKings"]
[Black "WiktoriaPOL"]
[Result "1-0"]
[WhiteElo "2485"]
[BlackElo "2047"]
[TimeControl "180+1"]
[EndTime "10:03:37 PDT"]
[Termination "CrushingKings won by resignation"]

1. e4 {[%clk 0:02:59.8]} 1... c5 {[%clk 0:02:57.9]} 2. d4 {[%clk 0:02:58.8]}
2... cxd4 {[%clk 0:02:57.2]} 3. c3 {[%clk 0:02:59.7]} 3... Nf6 {[%clk
0:02:57.1]} 4. e5 {[%clk 0:03:00]} 4... Nd5 {[%clk 0:02:57.1]} 5. Nf3 {[%clk
0:03:00.6]} 5... Nc6 {[%clk 0:02:56.4]} 6. Bc4 {[%clk 0:03:01]} 6... Nb6 {[%clk
0:02:55.9]} 7. Bb3 {[%clk 0:03:01.6]} 7... e6 {[%clk 0:02:52.7]} 8. cxd4 {[%clk
0:02:58.4]} 8... d6 {[%clk 0:02:52.6]} 9. Qe2 {[%clk 0:02:57.6]} 9... d5 {[%clk
0:02:44.5]} 10. Nc3 {[%clk 0:02:48.4]} 10... Be7 {[%clk 0:02:37.1]} 11. h4
{[%clk 0:02:48.2]} 11... Bd7 {[%clk 0:02:30.1]} 12. h5 {[%clk 0:02:47.9]} 12...
h6 {[%clk 0:02:28.1]} 13. Rh3 {[%clk 0:02:48.1]} 13... Na5 {[%clk 0:02:23.6]}
14. Bc2 {[%clk 0:02:48.3]} 14... Nac4 {[%clk 0:02:20.3]} 15. Rg3 {[%clk
0:02:47.7]} 15... Kf8 {[%clk 0:02:18.2]} 16. Kf1 {[%clk 0:02:10.7]} 16... Rc8
{[%clk 0:02:16.1]} 17. Kg1 {[%clk 0:02:10.7]} 17... a6 {[%clk 0:02:15]} 18. Nh2
{[%clk 0:02:09.5]} 18... Bb5 {[%clk 0:02:13.9]} 19. Qg4 {[%clk 0:02:08]} 19...
Rg8 {[%clk 0:02:04.2]} 20. Bh7 {[%clk 0:02:05.3]} 20... Bg5 {[%clk 0:01:52.2]}
21. Bxg8 {[%clk 0:01:40.3]} 21... Kxg8 {[%clk 0:01:53.1]} 22. f4 {[%clk
0:01:39.8]} 22... Qe7 {[%clk 0:01:43.7]} 23. fxg5 {[%clk 0:01:38.8]} 1-0

[Event "*** Titled Tuesday Blitz"]
[Site "Chess.com"]
[Date "2021.04.20"]
[Round "1"]
[White "KonstantinB_1983"]
[Black "RamyresCoelho"]
[Result "0-1"]
[WhiteElo "2499"]
[BlackElo "2207"]
[TimeControl "180+1"]
[EndTime "10:03:38 PDT"]
[Termination "RamyresCoelho won by checkmate"]

1. d4 {[%clk 0:02:58.9]} 1... Nf6 {[%clk 0:02:59.4]} 2. c4 {[%clk 0:02:59.2]}
2... g6 {[%clk 0:02:59.4]} 3. Nc3 {[%clk 0:02:58.9]} 3... d5 {[%clk 0:02:59.9]}
4. cxd5 {[%clk 0:02:58.4]} 4... Nxd5 {[%clk 0:03:00.8]} 5. e4 {[%clk 0:02:58.6]}
5... Nxc3 {[%clk 0:02:59.3]} 6. bxc3 {[%clk 0:02:58.9]} 6... Bg7 {[%clk
0:02:59.8]} 7. Bc4 {[%clk 0:02:58.8]} 7... O-O {[%clk 0:03:00.3]} 8. Ne2 {[%clk
0:02:58.6]} 8... c5 {[%clk 0:03:00.8]} 9. h4 {[%clk 0:02:57.8]} 9... cxd4 {[%clk
0:03:01]} 10. cxd4 {[%clk 0:02:57.1]} 10... Nc6 {[%clk 0:03:01.1]} 11. Be3
{[%clk 0:02:56.6]} 11... h5 {[%clk 0:02:58.6]} 12. f3 {[%clk 0:02:55.2]} 12...
Qc7 {[%clk 0:02:55.2]} 13. Rc1 {[%clk 0:02:52.6]} 13... Qa5+ {[%clk 0:02:54.4]}
14. Kf2 {[%clk 0:02:50.6]} 14... e6 {[%clk 0:02:48.9]} 15. g4 {[%clk 0:02:43.5]}
15... hxg4 {[%clk 0:02:41.9]} 16. h5 {[%clk 0:02:42]} 16... gxh5 {[%clk
0:02:39]} 17. fxg4 {[%clk 0:02:40.4]} 17... hxg4 {[%clk 0:02:35.3]} 18. Nf4
{[%clk 0:02:33.9]} 18... g3+ {[%clk 0:02:30.2]} 19. Kg2 {[%clk 0:02:27.4]} 19...
Rd8 {[%clk 0:01:51.4]} 20. Rh5 {[%clk 0:02:06.7]} 20... Qa3 {[%clk 0:01:38]} 21.
Rg5 {[%clk 0:02:01.4]} 21... Qxe3 {[%clk 0:01:34.9]} 22. Qg4 {[%clk 0:01:58.3]}
22... Qf2+ {[%clk 0:01:30.8]} 23. Kh3 {[%clk 0:01:54.2]} 23... Qh2# {[%clk
0:01:30.4]} 0-1

[Event "*** Titled Tuesday Blitz"]
[Site "Chess.com"]
[Date "2021.04.20"]
[Round "1"]
[White "not_najdorfs_player"]
[Black "Reader777"]
[Result "0-1"]
[WhiteElo "2379"]
[BlackElo "2703"]
[TimeControl "180+1"]
[EndTime "10:03:57 PDT"]
[Termination "Reader777 won by resignation"]

1. e4 {[%clk 0:02:58.5]} 1... c5 {[%clk 0:02:59.7]} 2. Nf3 {[%clk 0:02:57.8]}
2... d6 {[%clk 0:02:59.1]} 3. d4 {[%clk 0:02:54.2]} 3... cxd4 {[%clk 0:02:58.4]}
4. Nxd4 {[%clk 0:02:55.1]} 4... Nf6 {[%clk 0:02:58.7]} 5. Nc3 {[%clk 0:02:54.6]}
5... a6 {[%clk 0:02:58.8]} 6. Be2 {[%clk 0:02:53.3]} 6... e5 {[%clk 0:02:58.6]}
7. Nb3 {[%clk 0:02:52.6]} 7... Be7 {[%clk 0:02:57.9]} 8. Bg5 {[%clk 0:02:51.4]}
8... Be6 {[%clk 0:02:57.6]} 9. Qd3 {[%clk 0:02:48.8]} 9... Nbd7 {[%clk
0:02:55.8]} 10. O-O {[%clk 0:02:45.4]} 10... h6 {[%clk 0:02:55.3]} 11. Be3
{[%clk 0:02:41.5]} 11... O-O {[%clk 0:02:54.2]} 12. Rad1 {[%clk 0:02:34.4]}
12... Rc8 {[%clk 0:02:51.3]} 13. h3 {[%clk 0:02:29.6]} 13... b5 {[%clk
0:02:47.9]} 14. a3 {[%clk 0:02:23.3]} 14... Nb6 {[%clk 0:02:46.6]} 15. Nd2
{[%clk 0:01:38.1]} 15... Qc7 {[%clk 0:02:39.2]} 16. g4 {[%clk 0:01:31.4]} 16...
Rfd8 {[%clk 0:02:34.4]} 17. g5 {[%clk 0:01:27]} 17... hxg5 {[%clk 0:02:27.8]}
18. Bxg5 {[%clk 0:01:27.9]} 18... d5 {[%clk 0:02:28.2]} 19. exd5 {[%clk
0:01:10.6]} 19... Nfxd5 {[%clk 0:02:25.6]} 20. Nxd5 {[%clk 0:01:06.3]} 20...
Nxd5 {[%clk 0:02:19.7]} 21. Qg3 {[%clk 0:00:53.9]} 21... Bxg5 {[%clk 0:02:16.1]}
22. Qxg5 {[%clk 0:00:54.1]} 22... Nf4 {[%clk 0:02:16.7]} 23. Bd3 {[%clk
0:00:50.7]} 23... Nxh3+ {[%clk 0:02:16.3]} 0-1

[Event "*** Titled Tuesday Blitz"]
[Site "Chess.com"]
[Date "2021.04.20"]
[Round "1"]
[White "enriquebutti"]
[Black "Sergey85Rodchenkov"]
[Result "0-1"]
[WhiteElo "2064"]
[BlackElo "2496"]
[TimeControl "180+1"]
[EndTime "10:04:12 PDT"]
[Termination "Sergey85Rodchenkov won by resignation"]

1. d4 {[%clk 0:02:58.9]} 1... Nf6 {[%clk 0:02:59.2]} 2. Nf3 {[%clk 0:02:58.6]}
2... b6 {[%clk 0:02:59.2]} 3. e3 {[%clk 0:02:57.7]} 3... Bb7 {[%clk 0:02:59.3]}
4. Bd3 {[%clk 0:02:57.4]} 4... g6 {[%clk 0:02:59.2]} 5. O-O {[%clk 0:02:56.9]}
5... Bg7 {[%clk 0:02:59.2]} 6. c3 {[%clk 0:02:56.8]} 6... O-O {[%clk 0:02:59]}
7. Nbd2 {[%clk 0:02:56.5]} 7... d6 {[%clk 0:02:59.1]} 8. e4 {[%clk 0:02:56.3]}
8... Nbd7 {[%clk 0:02:58.7]} 9. Re1 {[%clk 0:02:56]} 9... e5 {[%clk 0:02:58.8]}
10. Nf1 {[%clk 0:02:55.6]} 10... Re8 {[%clk 0:02:57.2]} 11. Ng3 {[%clk
0:02:55.2]} 11... d5 {[%clk 0:02:39.2]} 12. Bg5 {[%clk 0:02:32.6]} 12... h6
{[%clk 0:02:30.4]} 13. Bxf6 {[%clk 0:02:27.1]} 13... Qxf6 {[%clk 0:02:24.3]} 14.
exd5 {[%clk 0:02:24]} 14... Bxd5 {[%clk 0:02:23.4]} 15. Be4 {[%clk 0:02:22.7]}
15... Bxe4 {[%clk 0:01:59]} 16. Nxe4 {[%clk 0:02:21.7]} 16... Qc6 {[%clk
0:01:59]} 17. d5 {[%clk 0:02:16.7]} 17... Qb7 {[%clk 0:01:58.9]} 18. c4 {[%clk
0:02:00.4]} 18... f5 {[%clk 0:01:58.7]} 19. Nc3 {[%clk 0:01:59.8]} 19... Rad8
{[%clk 0:01:56.3]} 20. Qd2 {[%clk 0:01:56.1]} 20... Kh7 {[%clk 0:01:51.1]} 21.
Re2 {[%clk 0:01:49.6]} 21... c6 {[%clk 0:01:48.4]} 22. Rae1 {[%clk 0:01:47.6]}
22... e4 {[%clk 0:01:48.4]} 23. Nd4 {[%clk 0:01:46.4]} 23... cxd5 {[%clk
0:01:48.7]} 24. Nxd5 {[%clk 0:01:34.1]} 24... Ne5 {[%clk 0:01:47.5]} 25. b3
{[%clk 0:01:26.1]} 25... Nd3 {[%clk 0:01:45.5]} 26. Rd1 {[%clk 0:01:24.4]} 26...
Bxd4 {[%clk 0:01:44.5]} 0-1

[Event "*** Titled Tuesday Blitz"]
[Site "Chess.com"]
[Date "2021.04.20"]
[Round "1"]
[White "Slovak_fighter2000"]
[Black "TigrVShlyape"]
[Result "0-1"]
[WhiteElo "2443"]
[BlackElo "2824"]
[TimeControl "180+1"]
[EndTime "10:04:13 PDT"]
[Termination "TigrVShlyape won by resignation"]

1. d3 {[%clk 0:02:59.8]} 1... c5 {[%clk 0:02:57.7]} 2. Nf3 {[%clk 0:03:00.2]}
2... Nc6 {[%clk 0:02:57.3]} 3. g3 {[%clk 0:03:00.4]} 3... g6 {[%clk 0:02:56.9]}
4. Bg2 {[%clk 0:02:58.4]} 4... Bg7 {[%clk 0:02:57.1]} 5. O-O {[%clk 0:02:57.6]}
5... d6 {[%clk 0:02:54.7]} 6. c4 {[%clk 0:02:56.8]} 6... e6 {[%clk 0:02:53.9]}
7. Nc3 {[%clk 0:02:56.3]} 7... Nge7 {[%clk 0:02:53.5]} 8. a3 {[%clk 0:02:55.9]}
8... O-O {[%clk 0:02:49.4]} 9. Bd2 {[%clk 0:02:55.9]} 9... b6 {[%clk 0:02:49.3]}
10. Rb1 {[%clk 0:02:54.9]} 10... Bb7 {[%clk 0:02:48.1]} 11. b4 {[%clk 0:02:55]}
11... Qd7 {[%clk 0:02:48.1]} 12. e3 {[%clk 0:02:51]} 12... Rad8 {[%clk 0:02:46]}
13. Qe2 {[%clk 0:02:50.8]} 13... h6 {[%clk 0:02:44.3]} 14. h3 {[%clk 0:02:50]}
14... Ba8 {[%clk 0:02:37.7]} 15. Kh2 {[%clk 0:02:49.6]} 15... Kh7 {[%clk
0:02:31.1]} 16. Rfc1 {[%clk 0:02:45.6]} 16... f5 {[%clk 0:02:29.5]} 17. Ne1
{[%clk 0:02:40.3]} 17... Ne5 {[%clk 0:02:14.7]} 18. f4 {[%clk 0:02:37.8]} 18...
Bxg2 {[%clk 0:02:13.2]} 19. Kxg2 {[%clk 0:02:36.6]} 19... N5c6 {[%clk
0:02:12.2]} 20. Nf3 {[%clk 0:02:36.2]} 20... e5 {[%clk 0:02:08.3]} 21. e4 {[%clk
0:02:31.4]} 21... fxe4 {[%clk 0:01:54.5]} 22. dxe4 {[%clk 0:02:27.6]} 22... Nd4
{[%clk 0:01:48.7]} 23. Nxd4 {[%clk 0:02:26.5]} 23... exd4 {[%clk 0:01:44.1]} 24.
Nd5 {[%clk 0:02:24.7]} 24... Nxd5 {[%clk 0:01:42.8]} 25. cxd5 {[%clk 0:02:22.3]}
25... Rfe8 {[%clk 0:01:38.7]} 26. Qd3 {[%clk 0:02:20.2]} 26... Rc8 {[%clk
0:01:37.8]} 27. b5 {[%clk 0:02:10.6]} 27... Qe7 {[%clk 0:01:12.3]} 28. Kf3
{[%clk 0:02:08.2]} 28... c4 {[%clk 0:01:07.4]} 29. Re1 {[%clk 0:02:01.9]} 0-1

[Event "*** Titled Tuesday Blitz"]
[Site "Chess.com"]
[Date "2021.04.20"]
[Round "1"]
[White "FGHSMN"]
[Black "jraosam"]
[Result "1-0"]
[WhiteElo "2478"]
[BlackElo "1887"]
[TimeControl "180+1"]
[EndTime "10:04:17 PDT"]
[Termination "FGHSMN won by resignation"]

1. e4 {[%clk 0:02:59.4]} 1... c5 {[%clk 0:02:59.1]} 2. Nf3 {[%clk 0:02:58.7]}
2... d6 {[%clk 0:02:59]} 3. d4 {[%clk 0:02:58.3]} 3... cxd4 {[%clk 0:02:59.9]}
4. Nxd4 {[%clk 0:02:58.8]} 4... Nf6 {[%clk 0:02:58.5]} 5. Nc3 {[%clk 0:02:58.8]}
5... g6 {[%clk 0:02:58.3]} 6. Be3 {[%clk 0:02:56.6]} 6... Bg7 {[%clk 0:02:57.6]}
7. Be2 {[%clk 0:02:53.8]} 7... Nc6 {[%clk 0:02:57.4]} 8. O-O {[%clk 0:02:53.2]}
8... Bd7 {[%clk 0:02:57.2]} 9. Qd2 {[%clk 0:02:52.9]} 9... Ng4 {[%clk
0:02:56.3]} 10. Bxg4 {[%clk 0:02:48.9]} 10... Bxg4 {[%clk 0:02:57.2]} 11. f3
{[%clk 0:02:49.4]} 11... Bd7 {[%clk 0:02:56.6]} 12. Rad1 {[%clk 0:02:47.8]}
12... O-O {[%clk 0:02:54.7]} 13. Nd5 {[%clk 0:02:44.5]} 13... Re8 {[%clk
0:02:46.5]} 14. c4 {[%clk 0:02:40.2]} 14... Ne5 {[%clk 0:02:26.6]} 15. b3 {[%clk
0:02:38.6]} 15... e6 {[%clk 0:02:22]} 16. Nc3 {[%clk 0:02:37.2]} 16... Qc7
{[%clk 0:02:21.5]} 17. Ndb5 {[%clk 0:02:35.5]} 17... Qa5 {[%clk 0:02:09.1]} 18.
Nxd6 {[%clk 0:02:15.9]} 18... Reb8 {[%clk 0:01:40.1]} 19. Ncb5 {[%clk
0:02:08.6]} 19... Qxd2 {[%clk 0:01:33.2]} 20. Rxd2 {[%clk 0:02:09.5]} 20... Bxb5
{[%clk 0:01:10.1]} 21. Nxb5 {[%clk 0:02:10.4]} 21... a5 {[%clk 0:00:54.6]} 22.
Nc7 {[%clk 0:02:08.6]} 22... Rd8 {[%clk 0:00:50.9]} 23. Nxa8 {[%clk 0:02:04.1]}
1-0